Cogmind - Beta 13 @@@ ROGUE MODE // 2024.04.04 @ 10:33:42 Player: Calliope Result: Destroyed by Explosive Trap Performance ------------- Evolutions (1) 500 Regions Visited (3) 600 Robots Destroyed (30) 150 Value Destroyed (874) 874 Prototype IDs (1) 20 Alien Tech Used (0) 0 Bonus (8) 8 TOTAL SCORE: 2152 Bonus ------- High Alert Combat Kills 8 Cogmind --------- Core Integrity 0/400 Matter 244/300 Energy 99/100 System Corruption 1% Temperature Cool (2) Movement Hovering (56) Location -9/Storage Parts ------- > --- POWER (1) -------- (None) > --- PROPULSION (2) --- Hover Unit Hover Unit > --- UTILITY (4) ------ Hacking Suite Hacking Suite Drone Bay (2/2) Drone Bay (1/2) > --- WEAPON (2) ------- (None) > --- INVENTORY (5) ---- Drone Bay (2/2) Drone Bay (2/2) Peak State ------------ > --- POWER ------------ Light Nuclear Core > --- PROPULSION ------- Improved Treads Improved Treads > --- UTILITY ---------- Improved Signal Interpreter Improved Signal Interpreter Hacking Suite Hacking Suite > --- WEAPON ----------- Advanced Beam Cannon Heavy Particle Cannon > --- INVENTORY -------- Improved Signal Interpreter Hacking Suite Hacking Suite Heavy Particle Cannon [Rating: 26] Favorites ----------- Power Light Nuclear Core Engine Ion Engine Power Core Light Nuclear Core Propulsion Light Treads Treads Light Treads Leg Aluminum Leg Hover Unit Hover Unit Utility Hacking Suite Device Improved Terrain Scanner Storage Small Storage Unit Processor Improved Signal Interpreter Hackware Hacking Suite Weapon Heavy Particle Cannon Energy Cannon Heavy Particle Cannon Ballistic Gun Heavy Assault Rifle Launcher Grenade Launcher Build | -11 -10 -9 -9 ------- Run | Yrd Mat Mat Sto Slots Evolved 2 | . . 2 . Power . | . . . . Propulsion . | . . . . Utility 2 | . . 2 . Weapon . | . . . . Parts Attached 35 | 8 1 17 9 Power 4 | 1 . 2 1 Engine 2 | 1 . . 1 Core 2 | . . 2 . Reactor . | . . . . Propulsion 11 | 3 . 5 3 Treads 7 | 2 . 4 1 Leg 2 | 1 . 1 . Wheel . | . . . . Hover 2 | . . . 2 Flight . | . . . . Utility 12 | 2 . 5 5 Device 4 | 1 . . 3 Storage 1 | 1 . . . Processor 3 | . . 2 1 Hackware 4 | . . 3 1 Protection . | . . . . Artifact . | . . . . Weapon 8 | 2 1 5 . Energy Gun . | . . . . Energy Cannon 3 | . . 3 . Ballistic Gun 3 | 2 . 1 . Ballistic Cannon . | . . . . Launcher 2 | . 1 1 . Special Weapon . | . . . . Impact Weapon . | . . . . Slashing Weapon . | . . . . Piercing Weapon . | . . . . Special Melee Weapon . | . . . . Unidentified Prototypes 1 | . . 1 . Parts Lost 12 | . 1 3 8 Power 2 | . . . 2 Propulsion 4 | . . 1 3 Utility 2 | . . 1 1 Weapon 4 | . 1 1 2 Highest Loss Streak 3 | . 1 2 3 To Critical Strikes . | . . . . Average Slot Usage (%) 89 | . 96 90 79 Engine 2 | . 14 . . Core 7 | . . 10 4 Treads 17 | . 28 15 13 Leg 1 | . . 1 . Device 3 | . 14 . 3 Storage 3 | . 14 2 . Processor 16 | . . 19 18 Hackware 18 | . . 21 22 Energy Cannon 9 | . . 12 6 Ballistic Gun 5 | . 12 3 5 Launcher 3 | . 12 1 . Naked Turns . | . . . . Heaviest Build 20 | 15 16 20 14 Greatest Support 46 | 40 40 46 43 Greatest Overweight (x) 4 | . . 4 . Average Overweight (x) . | . . . . Largest Inventory Capacity 8 | 8 8 8 5 Average Capacity 5 | 5 8 5 5 Most Carried 8 | 2 4 8 4 Average Carried 1 | . 2 3 . Final Capacity 8 | 8 8 5 5 Final Carried 3 | 2 3 2 2 Class Distribution -------------------- 64% | Mutant 35% | Hacker-Mutant Dominant Class ---------------- Mutant | -10/Materials Hacker-Mutant | -9/Materials Hacker-Mutant | -9/Storage Resources | -11 -10 -9 -9 ----------- Run | Yrd Mat Mat Sto Matter Collected 881 | 338 192 283 68 Remotely . | . . . . Salvage Created 1026 | 151 341 324 210 Parts 63 | 9 20 22 12 Haulers Intercepted . | . . . . Recyclers Shooed 2 | . 1 . 1 Parts Field Recycled . | . . . . Retrieved Matter . | . . . . Parts Self-Destructed . | . . . . Prevented . | . . . . Kills | -11 -10 -9 -9 ------- Run | Yrd Mat Mat Sto Combat Hostiles Destroyed 22 | 1 9 10 2 Melee 1 | 1 . . . Guns 1 | . . . 1 Cannons 7 | . . 6 1 AOE 13 | . 9 4 . Classes Destroyed 7 | 3 2 2 . Tunneler 2 | 2 . . . Recycler 3 | 1 1 . 1 Watcher 3 | . 1 . 2 Swarmer 3 | . . 3 . Grunt 15 | . 9 4 2 Sentry 3 | . . 3 . Demolisher 1 | 1 . . . Best Kill Streak 4 | 2 3 4 2 Combat Bots Only 4 | 1 2 4 1 Max Kills in Single Turn 3 | 1 3 2 1 Gunslinging . | . . . . Exploded 2 | . 2 2 . Melee 1 | 1 . . . Uniques/NPCs Destroyed . | . . . . Combat | -11 -10 -9 -9 -------- Run | Yrd Mat Mat Sto Hostile Shots Fired 185 | 3 36 66 80 Missed 61 | 1 17 20 23 Damage Taken 2087 | 132 408 801 746 Core 631 | 132 77 225 197 Absorbed by Shields . | . . . . Regen/Repaired (Parts) 21 | . . 21 . Core Remaining (%) 31 | 47 16 . . Volleys Fired 54 | . 12 29 13 Largest 2 | . 2 2 2 Hottest 143 | . 50 143 98 Shots Fired 94 | . 22 50 22 Gun 24 | . 9 6 9 Cannon 51 | . . 38 13 Launcher 19 | . 13 6 . Special . | . . . . Kinetic 24 | . 9 6 9 Thermal 51 | . . 38 13 Explosive 19 | . 13 6 . Electromagnetic . | . . . . Robot Hit Streak 11 | . 4 11 3 Robot Miss Streak 5 | . 2 5 5 Penetration Max . | . . . . Secondary Targets . | . . . . Shots Hit Robots 44 | . 9 25 10 Core Hits 48 | 9 18 12 9 Critical Kills . | . . . . Critical Parts Destroyed . | . . . . Critical Strikes . | . . . . Melee Attacks . | . . . . Impact . | . . . . Slashing . | . . . . Piercing . | . . . . Sneak Attacks . | . . . . Combat Hostiles . | . . . . Follow-up Attacks . | . . . . Damage Inflicted 1719 | 72 679 712 256 Guns 156 | . 48 49 59 Cannons 574 | . . 424 150 Explosions 869 | . 631 238 . Melee . | . . . . Ramming 120 | 72 . 1 47 Kinetic 156 | . 48 49 59 Thermal 574 | . . 424 150 Explosive 869 | . 631 238 . Electromagnetic . | . . . . Impact . | . . . . Slashing . | . . . . Piercing . | . . . . Highest Corruption 3 | 3 3 1 1 Average Corruption 2 | 2 3 1 1 Corruption Purged . | . . . . Corruption Blocked . | . . . . Effects 71 | 55 4 7 5 Message Errors 15 | 13 1 1 . Matter Fused 19 | 14 1 2 2 Heat Flow Errors 13 | 12 . 1 . Energy Discharges 6 | 5 . 1 . Data Loss (minor) 9 | 6 1 1 1 Data Loss (major) 5 | 3 . 1 1 Misfires 2 | . 1 . 1 Alerts 2 | 2 . . . Overload Shots . | . . . . Overflow Damage 35 | . 27 8 . Projectiles . | . . . . Explosions 35 | . 27 8 . Melee . | . . . . Knockbacks . | . . . . Impact . | . . . . Kinetic . | . . . . Secondary . | . . . . Self-Inflicted Damage 311 | 33 124 129 25 Shots 11 | . 5 6 . Rammed 21 | 12 . 1 8 Targets Rammed 21 | 12 . 1 8 Kicked . | . . . . Crushed . | . . . . Highest Temperature 564 | 254 5 564 120 Average Temperature 125 | 104 2 172 40 Received Heat Transfer 747 | . 138 261 348 Effects 12 | . . 12 . Shutdowns 2 | . . 2 . Energy Bleed 4 | . . 4 . Matter Decay 1 | . . 1 . Damage (minor) 1 | . . 1 . Damage (major) 2 | . . 2 . Damage (core) 2 | . . 2 . Siege Activations . | . . . . Robots Corrupted . | . . . . Combat Hostiles . | . . . . Parts Fried . | . . . . Impact Corruptions . | . . . . Robots Melted . | . . . . Combat Hostiles . | . . . . Parts Melted 2 | . . 2 . Heat Transferred 888 | . . 666 222 Parts Sabotaged . | . . . . Parts Stolen . | . . . . Parts Stripped . | . . . . Power Chain Reactions . | . . . . Alert | -11 -10 -9 -9 ------- Run | Yrd Mat Mat Sto Peak Influence 404 | 60 404 155 59 Initial 110 | . 6 110 34 Average 39 | 3 254 63 33 Maximum Alert Level 2 | . 2 . . Low Security (%) 95 | 100 26 100 100 Level 1 4 | . 61 . . Level 2 . | . 12 . . Level 3 . | . . . . Level 4 . | . . . . Level 5 . | . . . . High Security . | . . . . Max Security . | . . . . Squads Dispatched 9 | . 4 3 2 Investigation 5 | . 1 3 1 Extermination . | . . . . Reinforcement 4 | . 3 . 1 Assault . | . . . . Garrison . | . . . . Intercept . | . . . . Searches Triggered . | . . . . Construction Impeded . | . . . . Haulers Reinforced . | . . . . Active Scanning Responses . | . . . . Cargo Convoy Interrupts . | . . . . Stealth | -11 -10 -9 -9 --------- Run | Yrd Mat Mat Sto Distress Signals 5 | . 1 3 1 Communications Jammed . | . . . . Distress Signals . | . . . . Times Spotted 45 | 2 18 13 12 Peak Tracking Total 5 | 1 3 4 5 Tactical Retreats 5 | 1 1 1 2 Traps | -11 -10 -9 -9 ------- Run | Yrd Mat Mat Sto Traps Triggered 4 | . 1 . 3 Indirectly . | . . . . Trap Hack Attempts . | . . . . Triggered . | . . . . Disarmed . | . . . . Reprogrammed . | . . . . Reused . | . . . . Traps Extracted . | . . . . Installed . | . . . . Triggered . | . . . . Machines | -11 -10 -9 -9 ---------- Run | Yrd Mat Mat Sto Machines Disabled 4 | . 3 1 . Max in Single Turn 1 | . 1 1 . Machines Repaired . | . . . . Machines Dismantled . | . . . . Machines Sabotaged . | . . . . Overloaded Fab Kills . | . . . . Hacking | -11 -10 -9 -9 --------- Run | Yrd Mat Mat Sto Machines Accessed 12 | . 1 5 6 Terminals 7 | . 1 2 4 Fabricators . | . . . . Repair Stations 2 | . . 1 1 Recycling Units 2 | . . 1 1 Scanalyzers 1 | . . 1 . Garrison Access . | . . . . Total Hacks 29 | . 2 15 12 Successful 18 | . . 12 6 Failed 10 | . 2 2 6 Catastrophic 1 | . 1 . . Database Lockouts 1 | . . 1 . Manual 15 | . . 10 5 Terminals 19 | . 2 7 10 Fabricators . | . . . . Repair Stations 5 | . . 4 1 Recycling Units 2 | . . 1 1 Scanalyzers 3 | . . 3 . Garrison Access . | . . . . Terminal Hacks 10 | . . 5 5 Record 6 | . . 3 3 Open Door 1 | . . . 1 Unreport Threat 1 | . . . 1 Reinforcement Status 1 | . . 1 . Recall Reinforcements 1 | . . 1 . Fabricator Hacks . | . . . . Repair Station Hacks 3 | . . 3 . Scan Component 1 | . . 1 . Repair 1 | . . 1 . Refit 1 | . . 1 . Recycling Unit Hacks 2 | . . 1 1 Recycle Component 1 | . . 1 . Process 1 | . . . 1 Scanalyzer 3 | . . 3 . Insert Component 2 | . . 2 . Analyze 1 | . . 1 . Garrison Access Hacks . | . . . . Unauthorized Hacks . | . . . . Terminals . | . . . . Fabricators . | . . . . Repair Stations . | . . . . Recycling Units . | . . . . Scanalyzers . | . . . . Garrison Access . | . . . . Data Cores Recovered . | . . . . Used . | . . . . Hacking Detections 9 | . 1 4 4 Full Trace Events 6 | . 1 2 3 Feedback Events 2 | . . 1 1 Corruption 1 | . . 1 . Hackware Fried 1 | . . . 1 Feedback Blocked . | . . . . Robot Schematics Acquired . | . . . . Robots Built . | . . . . Authchips . | . . . . Time . | . . . . Total Robot Build Rating . | . . . . Part Schematics Acquired 1 | . . 1 . Parts Built . | . . . . Authchips . | . . . . Time . | . . . . Total Part Build Rating . | . . . . Parts Repaired 1 | . . 1 . Time 38 | . . 38 . Parts Recycled 1 | . . 1 . Recycled Matter 10 | . . . 10 Retrieved Matter . | . . . . Retrieved Components . | . . . . Parts Scanalyzed 1 | . . 1 . Part Schematics Acquired 1 | . . 1 . Parts Damaged . | . . . . Bothacking | -11 -10 -9 -9 ------------ Run | Yrd Mat Mat Sto Used RIF Installer . | . . . . Robots Hacked . | . . . . Non-combat . | . . . . Combat . | . . . . Robot Hacks Applied . | . . . . Relay Couplers Released . | . . . . Fabnet Peak Effective % . | . . . . Robots Rewired . | . . . . Allies Hacked . | . . . . Hacks Repelled . | . . . . Allies | -11 -10 -9 -9 -------- Run | Yrd Mat Mat Sto Total Allies . | . . . . Largest Group . | . . . . Highest-Rated Group . | . . . . Highest-Rated Ally . | . . . . Total Orders 3 | . . . 3 EXPLORE 3 | . . . 3 Ally Attacks . | . . . . Total Damage . | . . . . Kills . | . . . . Allies Corrupted . | . . . . Allies Melted . | . . . . Intel | -11 -10 -9 -9 ------- Run | Yrd Mat Mat Sto Robot Analysis Total . | . . . . Derelict Logs Recovered . | . . . . Drone Launches 4 | . . . 4 Drone Recoveries 3 | . . . 3 Exploration | -11 -10 -9 -9 ------------- Run | Yrd Mat Mat Sto Turns Passed 6732 | 3835 443 1910 544 Spaces Moved 2357 | 691 248 944 474 Core 894 | 631 . 127 136 Treads 1116 | 53 248 631 184 Legs 193 | 7 . 186 . Wheels . | . . . . Hover 154 | . . . 154 Flight . | . . . . Fastest Speed 50 | 50 160 100 50 Average Speed 114 | 59 160 152 94 Slowest Speed 250 | 160 160 250 160 Overloaded Moves . | . . . . Propulsion Burnouts . | . . . . Robots Hopped . | . . . . Cave-ins Triggered . | . . . . Exploration Rate (%) 48 | 47 50 35 60 Regions Visited 3 Branch Regions 1 Pre-discovered Areas . | . . . . Known Exits Taken 1 | . . 1 . Unknown Exits Taken 2 | 1 1 . . Scrap Searched . | . . . . Spaces Dug . | . . . . Terrain Destroyed 142 | . 92 43 7 Melee . | . . . . Projectile 17 | . . 10 7 AOE 125 | . 92 33 . Terrain Rammed 1 | . . . 1 Walls Destroyed . | . . . . Machines Disabled . | . . . . Actions | -11 -10 -9 -9 --------- Run | Yrd Mat Mat Sto Total 6297 | 4114 274 1367 542 Wait 3797 | 3401 9 354 33 Move 2354 | 690 247 943 474 Hop . | . . . . Pick Up 18 | 2 3 9 4 Fast Attach 20 | 7 . 9 4 Attach 5 | 1 . 3 1 Detach 2 | 1 . 1 . Swap 10 | . 1 5 4 Drop 15 | . 2 13 . Fire 54 | . 12 29 13 Melee . | . . . . Ram 18 | 12 . . 6 Kick . | . . . . Crush 4 | . . 1 3 Escape Stasis . | . . . . Rewire . | . . . . Trap . | . . . . Miscellaneous . | . . . . Route ------- -11/Scrapyard -10/Materials (discovered 2 exits: *Mat x2) -9/Materials -9/Storage History --------- Turn | Location | Event 821 | -11/Scrapyard | Discovered new exit (range 16) 1189 | -11/Scrapyard | Assembled infested the area 3707 | -11/Scrapyard | Core integrity fell below 50% 3836 | -11/Scrapyard | Entered Materials 3837 | -10/Materials | Build established: Mutant 4026 | -10/Materials | Discovered new exit (range 8) 4254 | -10/Materials | Core integrity fell below 20% 4258 | -10/Materials | Discovered new exit (range 14) 4279 | -10/Materials | Entered another Materials area 4279 | -9/Materials | Evolved 2 slots: Utility x2 4628 | -9/Materials | Build established: Hacker-Mutant 4822 | -9/Materials | Repaired Lgt. Nuclear Core 5435 | -9/Materials | Central database locked down 5526 | -9/Materials | Core integrity fell below 50% 6137 | -9/Materials | Discovered new exit (range 15) 6187 | -9/Materials | Identified exit to Storage 6189 | -9/Materials | Entered Storage 6246 | -9/Storage | Hacking Suite fried by hacking feedback 6510 | -9/Storage | Lost 3 parts (1p1n1w) 6564 | -9/Storage | Lost 3 parts (2n1w) 6578 | -9/Storage | Core integrity fell below 20% 6733 | -9/Storage | Destroyed by Explosive Trap Last Messages --------------- 06612_ W-16 Scout destroyed. 06613_ Acquired Hover Unit. 06621_ Connecting with Door Terminal... >>Open(Door) Sealed Heavy Doors opened. 06626_ Acquired Drone Bay. 06632_ Discarded Imp. Signal Interpreter. 06659_ Drone released from Drone Bay. 06700_ System corrupted: Matter fused (-6). 06709_ Slammed into Wall. 06718_ Drone retrieved by Drone Bay. 06720_ O-16 Technician sends out distress signal. 06720_ O-16 Technician: "IFF HANDSHAKE FAILED. SECURING TERMINAL." 06726_ ALERT: Hostiles spotted, dispatching reinforcements to Terminal S003. 06730_ Drone retrieved by Drone Bay. 06733_ Triggered Explosive Trap. 06733_ An explosion rips through the floor. Map ----- +----------------------------------------------------+ | | | | | | | | | | | | | | | ????????????????????????????? | | ????????????????????????????? | | ?????###????????????????????? | | ????? ##???????????????????? | | ??""" "????????????????????? | | ?#""" T????????????????????? | | ??""" ?????????????????????? | | ??""" ?????????????????????? | | ???"" ??????????????????????? | | ??? ??????????????????????? | | ???#Y#??????????????????????? | | ???# #???????###????????????? | | ???# #??????? ##???????????? | | ???# #??????? ????????????? | | ???# #??????? ?????????????? | | ???#n#??????? #?????????????? | | ???# ######## #?????????????? | | ???# Y #?????????????? | | ???#@^ #?????????????? | | ???# """ #?????????????? | | ???# """ #?????????????? | | ???# """ #######??????????? | | ???# # #??????????? | | ???# + #??????????? | | ???# # "T" #??????????? | | ???# #### ## """ # ???????? | | ???# #??# ## # ???????? | | ???# #??# ## ##### #??????? | | ???# ####+######## #??????? | | ???# + # #??????? | | ???# # """" # #??????? | | ???# # "??"" # #??????? | | ???# + "???"" # #??????? | | ???# #### "????" # #??????? | | ???# #??# ""??" # #??????? | | ???# #??# """" + #??????? | | ???# #??# # #??????? | | ???# #??# # +??????? | | ???# #?####/##+### #??????? | | ???# #?# # #??????? | | ???# ??# """"" # ######## | | ??## ??# "???" # | | ??# ## "??"" + | +----------------------------------------------------+ Best States ------------- Heat Dissipation 28 Energy Generation 14 Energy Capacity 250 Matter Stores 300 Matter Capacity 300 Sight Range 16 Terrain Scan Range 16 Terrain Scan Density 10 Evasion (%) 55 Recoil Reduction 2 Offensive Hacking 30 Item Schematics ----------------- Imp. Signal Interpreter | -9/Materials | Scanalyzed Robot Schematics ------------------ None Fabricated ------------ Nothing Alien Tech Used ----------------- None Achievements -------------- Fist Fight Maybe Next Time I'll Detach My Launcher Part-time Mechanic Storm Trooper Challenges ------------ None Game ------ Seed IonSlugReplicator Manual? 0 Play Time 01:02:25 Cumulative 1.8 hours Start 2024.04.02 @ 23:14:58 End 2024.04.04 @ 10:33:42 Sessions 8 Manual Loads 0 Difficulty Rogue Special Mode None Game No. 5 Rogue 3 Adventurer 0 Explorer 2 Win Type - Total 0 Types 0/0/0/0/0/0/0/0/0 Lore% 2 Gallery% 4 Achievement% 7 Wizard Run 0 Options --------- Layout 1 ASCII 0 Keyboard 1 Movement Vi Keybinds 0 Fullscreen 1 Font 32/SmallcapsGlow Map View 50x35 Zoom Use 2% Tactical HUD 1 Map Filters NONE Filters NONE Steam 1 RUN: e26754e0-42e1-4037-89ed-0ff85635efe0